Name,Subgroup,Service Area's,Expense Type,Narrative,Date,Transaction Number,Amount,Supplier Name,Supplier Ref,Period,Year
Allerdale Borough Council,16350,Supplies & Services,Homelessness,Miscellaneous Expenses,01/09/2021,484571,128.12,ANCHOR HANOVER,M00543,6,2021
Allerdale Borough Council,33112,Income,Planning and Development,Planning Fees Income,01/09/2021,484572,118,PORTAL PLAN QUEST LTD,M01566,6,2021
Allerdale Borough Council,33112,Income,Planning and Development,Planning Fees Income,01/09/2021,484573,462,Redacted information - included personal information ,M02060,6,2021
Allerdale Borough Council,15302,Supplies & Services,Workington Nature Partnership,Protective Clothing,01/09/2021,484574,22.84,Redacted information - included personal information ,M01839,6,2021
Allerdale Borough Council,33112,Income,Planning and Development,Planning Fees Income,01/09/2021,484575,732,PORTAL PLAN QUEST LTD,M01566,6,2021
Allerdale Borough Council,21101,Transfer Payments,SBCB,Private Individuals,01/09/2021,484576,1458,Redacted information - included personal information ,M02061,6,2021
Allerdale Borough Council,21101,Transfer Payments,SBCB,Private Individuals,01/09/2021,484577,2000,Redacted information - included personal information ,M02062,6,2021
Allerdale Borough Council,10401,Employee Costs,Housing Improvement,Agency Staff Costs,01/09/2021,484578,562.5,G2 RECRUITMENT SOLUTIONS LTD,C00198,6,2021
Allerdale Borough Council,12301,Premises,Multi Storey Car Park Utilities & Maint,Security,01/09/2021,484579,90,COMPASS SERVICES GROUP,A00839,6,2021
Allerdale Borough Council,10401,Employee Costs,Housing Improvement,Agency Staff Costs,01/09/2021,484580,975,G2 RECRUITMENT SOLUTIONS LTD,C00198,6,2021
Allerdale Borough Council,15803,Supplies & Services,IT Services,Hardware Purchase,01/09/2021,484581,2712,DAC TECHNOLOGY LTD,A02804,6,2021
Allerdale Borough Council,15101,Supplies & Services,Confidential Waste,Equipment Costs,01/09/2021,484582,184,J DUFFY LTD T/A PW CONF BUS SERVICES,A01846,6,2021
Allerdale Borough Council,12402,Premises,Tenanted Properties,Electricity,01/09/2021,484583,38.89,OPUS ENERGY,X00226,6,2021
Allerdale Borough Council,15805,Supplies & Services,IT Services,Computer Network,08/09/2021,484584,60,THUS/DEMON PLC (VODAFONE),A00598,6,2021
Allerdale Borough Council,15703,Supplies & Services,IT Services,Call Charges,01/09/2021,484585,735.85,BRITISH TELECOM PLC,A00363,6,2021
Allerdale Borough Council,15703,Supplies & Services,IT Services,Call Charges,01/09/2021,484586,1451.91,BRITISH TELECOM PLC,A00363,6,2021
Allerdale Borough Council,15811,Supplies & Services,IT Services,Software Maintenance,08/09/2021,484587,3018.29,PHOENIX SOFTWARE LTD,A00229,6,2021
Allerdale Borough Council,12402,Premises,Tenanted Properties,Electricity,01/09/2021,484588,122.57,N POWER ,X00015,6,2021
Allerdale Borough Council,12408,Premises,Corporate Property Maintenance,Water & Sewage,01/09/2021,484589,40.87,ANGLIAN WATER BUSINESS ,X00310,6,2021
Allerdale Borough Council,12403,Premises,Corporate Property Maintenance,Gas,01/09/2021,484590,84.43,CORONA ENERGY,X00003,6,2021
Allerdale Borough Council,12403,Premises,Corporate Property Maintenance,Gas,01/09/2021,484591,74.11,CORONA ENERGY,X00003,6,2021
Allerdale Borough Council,12403,Premises,Corporate Property Maintenance,Gas,01/09/2021,484592,261.51,CORONA ENERGY,X00003,6,2021
Allerdale Borough Council,12403,Premises,Corporate Property Maintenance,Gas,01/09/2021,484593,81.93,CORONA ENERGY,X00003,6,2021
Allerdale Borough Council,12403,Premises,Corporate Property Maintenance,Gas,01/09/2021,484594,59.21,CORONA ENERGY,X00003,6,2021
Allerdale Borough Council,12403,Premises,Corporate Property Maintenance,Gas,01/09/2021,484595,20.12,CORONA ENERGY,X00003,6,2021
Allerdale Borough Council,12403,Premises,Corporate Property Maintenance,Gas,01/09/2021,484596,65.72,CORONA ENERGY,X00003,6,2021
Allerdale Borough Council,16300,Supplies & Services,Tourism Incentive,Budget-Miscellaneous,01/09/2021,484619,342,FIRPRESS PRINTERS,A00063,6,2021
Allerdale Borough Council,16300,Supplies & Services,Markets,Budget-Miscellaneous,08/09/2021,484620,286.63,KESWICK TOURISM ASSOCIATION,A01882,6,2021
Allerdale Borough Council,15500,Supplies & Services,Electoral Registration,Budget-Services,01/09/2021,484621,995,DEMOCRACY COUNTS LTD,A02563,6,2021
Allerdale Borough Council,15102,Supplies & Services,Trade Waste,Equipment Repair & Maintenance,08/09/2021,484622,425,UK CONTAINER MAINTENANCE LTD,A01889,6,2021
Allerdale Borough Council,15101,Supplies & Services,Off-street - Owned,Equipment Costs,15/09/2021,484623,120.77,RELIANCE HIGH-TECH LTD,C00123,6,2021
Allerdale Borough Council,15101,Supplies & Services,Off-street - Owned,Equipment Costs,15/09/2021,484624,9.29,RELIANCE HIGH-TECH LTD,C00123,6,2021
Allerdale Borough Council,15401,Supplies & Services,Corporate Postage and Stationary,General Stationery,22/09/2021,484625,484.8,LYRECO,A00043,6,2021
Allerdale Borough Council,15401,Supplies & Services,Corporate Postage and Stationary,General Stationery,22/09/2021,484626,139.3,LYRECO,A00043,6,2021
Allerdale Borough Council,15401,Supplies & Services,Corporate Postage and Stationary,General Stationery,22/09/2021,484627,104.41,LYRECO,A00043,6,2021
Allerdale Borough Council,20150,Third Party Payments,Festivals & Events,General Partnership Service Fees,08/09/2021,484628,1200,RED RESEARCH,A02688,6,2021
Allerdale Borough Council,12300,Premises,Markets,Budget-Facilities Management,08/09/2021,484629,5400,Redacted information - included personal information ,A02801,6,2021
Allerdale Borough Council,15401,Supplies & Services,Corporate Postage and Stationary,General Stationery,22/09/2021,484630,219.65,LYRECO,A00043,6,2021
Allerdale Borough Council,15502,Supplies & Services,Legal Services,Land Registry Fees,01/09/2021,484631,9,HM LAND REGISTRY,A00505,6,2021
Allerdale Borough Council,15502,Supplies & Services,Legal Services,Land Registry Fees,27/09/2021,484632,51,HM LAND REGISTRY,A00505,6,2021
Allerdale Borough Council,15502,Supplies & Services,Legal Services,Land Registry Fees,27/09/2021,484633,9,HM LAND REGISTRY,A00505,6,2021
Allerdale Borough Council,15502,Supplies & Services,Legal Services,Land Registry Fees,27/09/2021,484634,75,HM LAND REGISTRY,A00505,6,2021
Allerdale Borough Council,15502,Supplies & Services,Legal Services,Land Registry Fees,27/09/2021,484635,66,HM LAND REGISTRY,A00505,6,2021
Allerdale Borough Council,15502,Supplies & Services,Environmental Protection,Land Registry Fees,27/09/2021,484636,12,HM LAND REGISTRY,A00505,6,2021
Allerdale Borough Council,15502,Supplies & Services,Legal Services,Land Registry Fees,27/09/2021,484637,91,HM LAND REGISTRY,A00505,6,2021
Allerdale Borough Council,15502,Supplies & Services,Planning and Development,Land Registry Fees,27/09/2021,484638,18,HM LAND REGISTRY,A00505,6,2021
Allerdale Borough Council,21101,Transfer Payments,Assistance - Housing Services,Private Individuals,08/09/2021,484639,250,Redacted information - included personal information ,X00313,6,2021
Allerdale Borough Council,16350,Supplies & Services,Homelessness,Miscellaneous Expenses,08/09/2021,484640,100,HOME GROUP LTD,M01028,6,2021
Allerdale Borough Council,16350,Supplies & Services,Homelessness,Miscellaneous Expenses,08/09/2021,484641,82.55,CASTLES & COASTS,M01448,6,2021
Allerdale Borough Council,54105,Capital Expenditure,Disabled Facilities Grants,Grants  Private Individuals (Capital),08/09/2021,484642,8741.26,K BAILIFF & SON LIMITED,X00116,6,2021
Allerdale Borough Council,54105,Capital Expenditure,Disabled Facilities Grants,Grants  Private Individuals (Capital),08/09/2021,484643,2560.78,K BAILIFF & SON LIMITED,X00116,6,2021
Allerdale Borough Council,15101,Supplies & Services,Multi-storey Car Park,Equipment Costs,22/09/2021,484644,367.5,METRIC GROUP LTD,A00568,6,2021
Allerdale Borough Council,16350,Supplies & Services,Allerdale Options,Miscellaneous Expenses,22/09/2021,484645,234.03,AVC WISE LIMITED,A02856,6,2021
Allerdale Borough Council,12104,Premises,Environmental Initiatives,Playground Equipment,22/09/2021,484646,2790.94,TIVOLI GROUP LTD,A02568,6,2021
Allerdale Borough Council,15803,Supplies & Services,IT Services,Hardware Purchase,22/09/2021,484647,288,LYRECO,A00043,6,2021
Allerdale Borough Council,15508,Supplies & Services,Building Control - Chargeable,Subscriptions,08/09/2021,484648,278,CHARTERED ASSOCIATION OF BUILDING ENGINEERS,A01875,6,2021
Allerdale Borough Council,12101,Premises,Corporate Property Maintenance,External Maintenance & Decoration,08/09/2021,484649,60,R & J INDUSTRIAL SUPPLIES LTD,A01059,6,2021
Allerdale Borough Council,12101,Premises,Corporate Property Maintenance,External Maintenance & Decoration,08/09/2021,484650,120.96,R & J INDUSTRIAL SUPPLIES LTD,A01059,6,2021
Allerdale Borough Council,10401,Employee Costs,Corporate Postage and Stationary,Agency Staff Costs,08/09/2021,484651,600,ADECCO RECRUITMENT,A00188,6,2021
Allerdale Borough Council,15103,Supplies & Services,Trade Waste,Purchase of Materials,15/09/2021,484652,12268,ALLERDALE WASTE SERVICES LIMITED,A02756,6,2021
Allerdale Borough Council,15200,Supplies & Services,Members Services,Budget-Catering,08/09/2021,484653,72,NO.47,A02750,6,2021
Allerdale Borough Council,12101,Premises,Public Convenience Cleaning,External Maintenance & Decoration,08/09/2021,484654,729.54,ECO PLASTIC WOOD LTD,C00233,6,2021
Allerdale Borough Council,15501,Supplies & Services,Building Control - Chargeable,Consultants Fees,08/09/2021,484655,65,CUMBRIA COUNTY COUNCIL,A00066,6,2021
Allerdale Borough Council,15507,Supplies & Services,Land Charges Service,Searches,08/09/2021,484657,725,CUMBRIA COUNTY COUNCIL ,A00066,6,2021
Allerdale Borough Council,10200,Employee Costs,Human Resources Pay Group,Budget-Employee Expenses,15/09/2021,484658,8.15,K&R BADGES LIMITED,A01328,6,2021
Allerdale Borough Council,10202,Employee Costs,Human Resources Pay Group,Medical Screening,08/09/2021,484659,150,Redacted information - included personal information ,A02594,6,2021
Allerdale Borough Council,12101,Premises,Harrington Harbour,External Maintenance & Decoration,08/09/2021,484660,125,IAN WILSON HAULAGE LIMITED,A01278,6,2021
Allerdale Borough Council,20150,Third Party Payments,Public Building Cleaning,General Partnership Service Fees,08/09/2021,484661,303.75,ORIAN SOLUTIONS LTD,A01814,6,2021
Allerdale Borough Council,12303,Premises,Corporate Property Maintenance,Window Cleaning,08/09/2021,484662,385,BORDERBRITE LTD,C00155,6,2021
Allerdale Borough Council,12303,Premises,Multi Storey Car Park Utilities & Maint,Window Cleaning,08/09/2021,484663,110,NT CLEANERS LTD,A01350,6,2021
Allerdale Borough Council,12201,Premises,Multi Storey Car Park Utilities & Maint,Internal Maintenance,22/09/2021,484664,327.54,TIVOLI GROUP LTD,A02568,6,2021
Allerdale Borough Council,16302,Supplies & Services,Members Services,Room Hire,08/09/2021,484665,69.5,ST MICHAELS CHURCH WORKINGTON LTD,A00255,6,2021
Allerdale Borough Council,14104,Transport,Public Convenience Cleaning,Repairs & Maintenance,08/09/2021,484666,15.75,Redacted information - included personal information ,A00031,6,2021
Allerdale Borough Council,15103,Supplies & Services,Solway AONB,Purchase of Materials,08/09/2021,484667,57,S & A WILLIAMSON LTD,A02663,6,2021
Allerdale Borough Council,20150,Third Party Payments,Festivals & Events,General Partnership Service Fees,08/09/2021,484668,2255,CUMBRIA COAL LTD,A02710,6,2021
Allerdale Borough Council,15507,Supplies & Services,Land Charges Service,Searches,08/09/2021,484669,1790,CUMBRIA COUNTY COUNCIL ,A00066,6,2021
Allerdale Borough Council,33117,Income,Off-street - Owned,Car Parks - Income from Machines,08/09/2021,484670,6.67,Redacted information - included personal information ,M02063,6,2021
Allerdale Borough Council,16350,Supplies & Services,Homelessness,Miscellaneous Expenses,08/09/2021,484671,330,Redacted information - included personal information ,M02064,6,2021
Allerdale Borough Council,16350,Supplies & Services,Homelessness,Miscellaneous Expenses,08/09/2021,484672,77.35,CASTLES & COASTS,M01448,6,2021
Allerdale Borough Council,15810,Supplies & Services,IT Services,Software Licences,08/09/2021,484673,349.86,SMARTERPAY LTD,A02595,6,2021
Allerdale Borough Council,15810,Supplies & Services,IT Services,Software Licences,08/09/2021,484674,162.8,ORDNANCE SURVEY,A00105,6,2021
Allerdale Borough Council,15811,Supplies & Services,IT Services,Software Maintenance,27/09/2021,484675,351,SAGE (UK) LTD ,A01911,6,2021
Allerdale Borough Council,15601,Supplies & Services,Corporate Postage and Stationary,Postage,08/09/2021,484676,655.56,UK MAIL GROUP PLC,A02371,6,2021
Allerdale Borough Council,15810,Supplies & Services,IT Services,Software Licences,15/09/2021,484677,171.6,LOGMEIN TECHNOLOGIES UK TD,A02565,6,2021
Allerdale Borough Council,15506,Supplies & Services,Solway AONB,Professional Services,08/09/2021,484678,7735,OPENSPACE (CUMBRIA) LTD,C00178,6,2021
Allerdale Borough Council,10401,Employee Costs,Housing Improvement,Agency Staff Costs,08/09/2021,484679,337.5,G2 RECRUITMENT SOLUTIONS LTD,C00198,6,2021
Allerdale Borough Council,15102,Supplies & Services,Solway AONB,Equipment Repair & Maintenance,08/09/2021,484680,39.17,CANAL HEAD GARDEN MACHINERY,A02848,6,2021
Allerdale Borough Council,15601,Supplies & Services,Corporate Postage and Stationary,Postage,08/09/2021,484681,515.31,UK MAIL GROUP PLC,A02371,6,2021
Allerdale Borough Council,12101,Premises,Public Convenience Cleaning,External Maintenance & Decoration,27/09/2021,484682,651.98,BARCLAYCARD COMMERCIAL ,X00207,6,2021
Allerdale Borough Council,16350,Supplies & Services,Chief Executive,Miscellaneous Expenses,27/09/2021,484683,0.79,BARCLAYCARD COMMERCIAL,X00207,6,2021
Allerdale Borough Council,15508,Supplies & Services,Environmental Protection,Subscriptions,08/09/2021,484684,648,R H ENVIRONMENTAL LTD,A01718,6,2021
Allerdale Borough Council,12103,Premises,Solway AONB,Grounds Maintenance,08/09/2021,484685,710,OPENSPACE (CUMBRIA) LTD,C00178,6,2021
Allerdale Borough Council,15500,Supplies & Services,Food and Occupational Health,Budget-Services,08/09/2021,484686,720,H&H SERVICES CUMBRIA LTD,A02753,6,2021
Allerdale Borough Council,16100,Supplies & Services,Communications and Marketing,Budget-Advertising and Promotions,27/09/2021,484687,747.7,BARCLAYCARD COMMERCIAL ,X00207,6,2021
Allerdale Borough Council,12405,Premises,COVID-19 - Homelessness,Rentals and Lease Charges,27/09/2021,484688,1879.35,BARCLAYCARD COMMERCIAL,X00207,6,2021
Allerdale Borough Council,14105,Transport,Allerdale Fleet,"Fuel, Lubricants & Consumables",20/09/2021,484689,579.21,BP OIL UK LTD ,X00022,6,2021
Allerdale Borough Council,14105,Transport,Solway Coast AONB Core Funding,"Fuel, Lubricants & Consumables",20/09/2021,484690,454.3,BP OIL UK LTD ,X00022,6,2021
Allerdale Borough Council,14105,Transport,Solway Coast AONB Core Funding,"Fuel, Lubricants & Consumables",,484691,358.32,BP OIL UK LTD,X00022,6,2021
Allerdale Borough Council,54105,Capital Expenditure,Disabled Facilities Grants,Grants  Private Individuals (Capital),08/09/2021,484692,650,CONISTON CONSULTANTS LTD,X00210,6,2021
Allerdale Borough Council,54105,Capital Expenditure,Disabled Facilities Grants,Grants  Private Individuals (Capital),08/09/2021,484693,1400,CONISTON CONSULTANTS LTD,X00210,6,2021
Allerdale Borough Council,10401,Employee Costs,Customer & Transformation Programme,Agency Staff Costs,08/09/2021,484694,-3894.93,SJH PROPERTY CONSULTANT LIMITED,A02814,6,2021
Allerdale Borough Council,16302,Supplies & Services,Members Services,Room Hire,08/09/2021,484695,85.9,HUNDAY MANOR HOTEL,A00278,6,2021
Allerdale Borough Council,10401,Employee Costs,Revenue,Agency Staff Costs,08/09/2021,484696,822.25,VENN GROUP,A01836,6,2021
Allerdale Borough Council,15101,Supplies & Services,Customer Services Pay Group,Equipment Costs,15/09/2021,484697,18.58,RELIANCE HIGH-TECH LTD,C00123,6,2021
Allerdale Borough Council,10401,Employee Costs,Revenue,Agency Staff Costs,08/09/2021,484698,782,VENN GROUP,A01836,6,2021
Allerdale Borough Council,15101,Supplies & Services,Bin Deliveries,Equipment Costs,08/09/2021,484699,40800.25,ALLERDALE WASTE SERVICES LIMITED,A02756,6,2021
Allerdale Borough Council,15101,Supplies & Services,Bin Deliveries,Equipment Costs,08/09/2021,484700,40800.25,ALLERDALE WASTE SERVICES LIMITED,A02756,6,2021
Allerdale Borough Council,12305,Premises,Corporate Property Maintenance,Inspections and Services,08/09/2021,484701,343,AQUAID (NORTH),A00123,6,2021
Allerdale Borough Council,12305,Premises,Corporate Property Maintenance,Inspections and Services,08/09/2021,484702,49,AQUAID (NORTH),A00123,6,2021
Allerdale Borough Council,15506,Supplies & Services,Off-street - Owned,Professional Services,22/09/2021,484703,22.8,CHIPSIDE LIMITED,A00004,6,2021
Allerdale Borough Council,20150,Third Party Payments,Festivals & Events,General Partnership Service Fees,08/09/2021,484704,5.79,AMAZON PAYMENTS UK LTD,A02682,6,2021
Allerdale Borough Council,12101,Premises,Corporate Property Maintenance,External Maintenance & Decoration,08/09/2021,484705,39.22,TRAVIS PERKINS,A00742,6,2021
Allerdale Borough Council,10401,Employee Costs,Revenue,Agency Staff Costs,08/09/2021,484706,801.09,VENN GROUP,A01836,6,2021
Allerdale Borough Council,12402,Premises,Domestic Abuse Funding,Electricity,08/09/2021,484707,31.21,N POWER,X00015,6,2021
Allerdale Borough Council,12402,Premises,Homelessness,Electricity,08/09/2021,484708,57.45,N POWER,X00015,6,2021
Allerdale Borough Council,12402,Premises,Domestic Abuse Funding,Electricity,08/09/2021,484709,33.17,N POWER,X00015,6,2021
Allerdale Borough Council,12402,Premises,Conversion of Otley Road,Electricity,08/09/2021,484710,9.56,N POWER,X00015,6,2021
Allerdale Borough Council,12402,Premises,Homelessness,Electricity,08/09/2021,484711,46.74,N POWER,X00015,6,2021
Allerdale Borough Council,12402,Premises,Homelessness,Electricity,08/09/2021,484712,11.99,N POWER,X00015,6,2021
Allerdale Borough Council,12402,Premises,Homelessness,Electricity,08/09/2021,484713,14.05,N POWER,X00015,6,2021
Allerdale Borough Council,12402,Premises,Homelessness,Electricity,08/09/2021,484714,17.36,N POWER,X00015,6,2021
Allerdale Borough Council,12402,Premises,Homelessness,Electricity,08/09/2021,484715,15.99,N POWER,X00015,6,2021
Allerdale Borough Council,12402,Premises,Homelessness,Electricity,08/09/2021,484716,26.89,N POWER,X00015,6,2021
Allerdale Borough Council,12402,Premises,Domestic Abuse Funding,Electricity,08/09/2021,484717,35.64,N POWER,X00015,6,2021
Allerdale Borough Council,15702,Supplies & Services,IT Services,Line Rentals,15/09/2021,484718,826.38,GJ BECKETT & ASSOC T/A BECKETT TELECOM,A02792,6,2021
Allerdale Borough Council,12402,Premises,Maryport FHS Project,Electricity,08/09/2021,484719,74.83,EDF ENERGY,X00312,6,2021
Allerdale Borough Council,12402,Premises,Maryport FHS Project,Electricity,08/09/2021,484720,249.74,EDF ENERGY,X00312,6,2021
Allerdale Borough Council,12402,Premises,Maryport FHS Project,Electricity,08/09/2021,484721,71.85,EDF ENERGY,X00312,6,2021
Allerdale Borough Council,12408,Premises,Corporate Property Maintenance,Water & Sewage,08/09/2021,484722,9.67,ANGLIAN WATER BUSINESS ,X00310,6,2021
Allerdale Borough Council,12408,Premises,Car Parks Inspection & Maintenance,Water & Sewage,08/09/2021,484723,14.08,ANGLIAN WATER BUSINESS ,X00310,6,2021
Allerdale Borough Council,12408,Premises,Corporate Property Maintenance,Water & Sewage,08/09/2021,484724,12.66,ANGLIAN WATER BUSINESS ,X00310,6,2021
Allerdale Borough Council,12408,Premises,Corporate Property Maintenance,Water & Sewage,08/09/2021,484725,1.39,ANGLIAN WATER BUSINESS ,X00310,6,2021
Allerdale Borough Council,12408,Premises,Corporate Property Maintenance,Water & Sewage,08/09/2021,484726,11.27,ANGLIAN WATER BUSINESS ,X00310,6,2021
Allerdale Borough Council,12408,Premises,Corporate Property Maintenance,Water & Sewage,08/09/2021,484727,0.07,ANGLIAN WATER BUSINESS ,X00310,6,2021
Allerdale Borough Council,12408,Premises,Multi Storey Car Park Utilities & Maint,Water & Sewage,08/09/2021,484728,659.51,ANGLIAN WATER BUSINESS ,X00310,6,2021
Allerdale Borough Council,12408,Premises,Corporate Property Maintenance,Water & Sewage,08/09/2021,484729,143.15,ANGLIAN WATER BUSINESS ,X00310,6,2021
Allerdale Borough Council,12408,Premises,Public Convenience Cleaning,Water & Sewage,08/09/2021,484730,185.6,ANGLIAN WATER BUSINESS ,X00310,6,2021
Allerdale Borough Council,12408,Premises,Corporate Property Maintenance,Water & Sewage,08/09/2021,484731,28.01,ANGLIAN WATER BUSINESS ,X00310,6,2021
Allerdale Borough Council,12408,Premises,Corporate Property Maintenance,Water & Sewage,08/09/2021,484732,0.16,ANGLIAN WATER BUSINESS ,X00310,6,2021
Allerdale Borough Council,12408,Premises,Corporate Property Maintenance,Water & Sewage,08/09/2021,484733,1.42,ANGLIAN WATER BUSINESS ,X00310,6,2021
Allerdale Borough Council,12408,Premises,Corporate Property Maintenance,Water & Sewage,08/09/2021,484734,171.99,ANGLIAN WATER BUSINESS ,X00310,6,2021
Allerdale Borough Council,12408,Premises,Corporate Property Maintenance,Water & Sewage,08/09/2021,484735,7302.39,ANGLIAN WATER BUSINESS ,X00310,6,2021
Allerdale Borough Council,12408,Premises,Corporate Property Maintenance,Water & Sewage,08/09/2021,484736,22.66,ANGLIAN WATER BUSINESS ,X00310,6,2021
Allerdale Borough Council,12408,Premises,Corporate Property Maintenance,Water & Sewage,08/09/2021,484737,-7302.39,ANGLIAN WATER BUSINESS ,X00310,6,2021
Allerdale Borough Council,12408,Premises,Corporate Property Maintenance,Water & Sewage,08/09/2021,484738,-173.87,ANGLIAN WATER BUSINESS ,X00310,6,2021
Allerdale Borough Council,12408,Premises,Corporate Property Maintenance,Water & Sewage,08/09/2021,484739,-168.75,ANGLIAN WATER BUSINESS ,X00310,6,2021
Allerdale Borough Council,12408,Premises,Corporate Property Maintenance,Water & Sewage,08/09/2021,484740,16.94,ANGLIAN WATER BUSINESS ,X00310,6,2021
Allerdale Borough Council,12408,Premises,Car Parks Inspection & Maintenance,Water & Sewage,08/09/2021,484741,50.28,ANGLIAN WATER BUSINESS ,X00310,6,2021
Allerdale Borough Council,12408,Premises,Corporate Property Maintenance,Water & Sewage,08/09/2021,484742,15.73,ANGLIAN WATER BUSINESS ,X00310,6,2021
Allerdale Borough Council,12408,Premises,Corporate Property Maintenance,Water & Sewage,08/09/2021,484743,1.42,ANGLIAN WATER BUSINESS ,X00310,6,2021
Allerdale Borough Council,12408,Premises,Public Convenience Cleaning,Water & Sewage,08/09/2021,484744,122,ANGLIAN WATER BUSINESS ,X00310,6,2021
Allerdale Borough Council,12408,Premises,Corporate Property Maintenance,Water & Sewage,08/09/2021,484745,-2.18,ANGLIAN WATER BUSINESS ,X00310,6,2021
Allerdale Borough Council,12408,Premises,Corporate Property Maintenance,Water & Sewage,08/09/2021,484746,162.38,ANGLIAN WATER BUSINESS ,X00310,6,2021
Allerdale Borough Council,12408,Premises,Corporate Property Maintenance,Water & Sewage,08/09/2021,484747,2.12,ANGLIAN WATER BUSINESS ,X00310,6,2021
Allerdale Borough Council,12408,Premises,Corporate Property Maintenance,Water & Sewage,08/09/2021,484748,994.58,ANGLIAN WATER BUSINESS ,X00310,6,2021
Allerdale Borough Council,12408,Premises,Public Convenience Cleaning,Water & Sewage,08/09/2021,484749,-79.85,ANGLIAN WATER BUSINESS ,X00310,6,2021
Allerdale Borough Council,12408,Premises,Public Convenience Cleaning,Water & Sewage,08/09/2021,484750,3.59,ANGLIAN WATER BUSINESS ,X00310,6,2021
Allerdale Borough Council,12408,Premises,Public Convenience Cleaning,Water & Sewage,08/09/2021,484751,-5.5,ANGLIAN WATER BUSINESS ,X00310,6,2021
Allerdale Borough Council,12408,Premises,Corporate Property Maintenance,Water & Sewage,08/09/2021,484752,54.12,ANGLIAN WATER BUSINESS ,X00310,6,2021
Allerdale Borough Council,12403,Premises,Public Convenience Cleaning,Gas,08/09/2021,484753,-54.03,ANGLIAN WATER BUSINESS ,X00310,6,2021
Allerdale Borough Council,12408,Premises,Public Convenience Cleaning,Water & Sewage,08/09/2021,484754,73.36,ANGLIAN WATER BUSINESS ,X00310,6,2021
Allerdale Borough Council,12408,Premises,Corporate Property Maintenance,Water & Sewage,08/09/2021,484755,20.34,ANGLIAN WATER BUSINESS ,X00310,6,2021
Allerdale Borough Council,12402,Premises,Maryport FHS Project,Electricity,08/09/2021,484756,32.01,EDF ENERGY,X00312,6,2021
Allerdale Borough Council,12402,Premises,Maryport FHS Project,Electricity,08/09/2021,484757,29.03,EDF ENERGY,X00312,6,2021
Allerdale Borough Council,12402,Premises,Maryport FHS Project,Electricity,08/09/2021,484758,-158.29,EDF ENERGY,X00312,6,2021
Allerdale Borough Council,15601,Supplies & Services,Corporate Postage and Stationary,Postage,08/09/2021,484759,45.61,ROYAL MAIL LETTERS,X00021,6,2021
Allerdale Borough Council,12408,Premises,Corporate Property Maintenance,Water & Sewage,08/09/2021,484760,141.23,ANGLIAN WATER BUSINESS,X00310,6,2021
Allerdale Borough Council,15601,Supplies & Services,Electoral Registration,Postage,08/09/2021,484761,70.23,ROYAL MAIL LETTERS,X00021,6,2021
Allerdale Borough Council,15804,Supplies & Services,IT Services,Computer Data Lines B.T.,22/09/2021,484762,45,VAIONI GROUP LTD,A02471,6,2021
Allerdale Borough Council,15704,Supplies & Services,IT Services,Mobile Phones,08/09/2021,484763,46,VODAFONE,A00551,6,2021
Allerdale Borough Council,20150,Third Party Payments,Footway Lighting Scheme,General Partnership Service Fees,08/09/2021,484764,5555.53,CUMBRIA COUNTY COUNCIL,A00066,6,2021
Allerdale Borough Council,15101,Supplies & Services,Off-street - Owned,Equipment Costs,08/09/2021,484765,190,FIRPRESS PRINTERS,A00063,6,2021
Allerdale Borough Council,10401,Employee Costs,Food Safety & Occupational Health,Agency Staff Costs,22/09/2021,484766,204.73,HAYS SPECIALIST RECRUITMENT LTD,A00280,6,2021
Allerdale Borough Council,12305,Premises,Corporate Property Maintenance,Inspections and Services,22/09/2021,484767,4.12,PHS GROUP LTD,C00028,6,2021
Allerdale Borough Council,12305,Premises,Corporate Property Maintenance,Inspections and Services,22/09/2021,484768,24.72,PHS GROUP LTD,C00028,6,2021
Allerdale Borough Council,12305,Premises,Public Convenience Cleaning,Inspections and Services,22/09/2021,484769,40.17,PHS GROUP LTD,C00028,6,2021
Allerdale Borough Council,15810,Supplies & Services,Trade Waste,Software Licences,22/09/2021,484770,1942,WHITESPACE WORK SOFTWARE,A02678,6,2021
Allerdale Borough Council,10401,Employee Costs,Food Safety & Occupational Health,Agency Staff Costs,22/09/2021,484771,542.81,HAYS SPECIALIST RECRUITMENT LTD,A00280,6,2021
Allerdale Borough Council,16300,Supplies & Services,Members Services,Budget-Miscellaneous,28/09/2021,484772,110,ASSOCIATION OF DEMOCRATIC SERVICES OFFICERS LIMITED,A01129,6,2021
Allerdale Borough Council,15506,Supplies & Services,Off-street - Owned,Professional Services,22/09/2021,484773,25.2,CHIPSIDE LIMITED,A00004,6,2021
Allerdale Borough Council,12101,Premises,Asset Transfer,External Maintenance & Decoration,22/09/2021,484774,515,TIVOLI GROUP LTD,A02568,6,2021
Allerdale Borough Council,15501,Supplies & Services,Coronavirus Enforcement,Consultants Fees,08/09/2021,484775,1680,G2 RECRUITMENT SOLUTIONS LTD,C00198,6,2021
Allerdale Borough Council,15501,Supplies & Services,Coronavirus Enforcement,Consultants Fees,08/09/2021,484776,1591,G2 RECRUITMENT SOLUTIONS LTD,C00198,6,2021
Allerdale Borough Council,12103,Premises,Environmental Initiatives,Grounds Maintenance,22/09/2021,484777,120,TIVOLI GROUP LTD,A02568,6,2021
Allerdale Borough Council,15513,Supplies & Services,Street Cleansing,Subcontractors - General,22/09/2021,484778,134.5,TIVOLI GROUP LTD,A02568,6,2021
Allerdale Borough Council,20302,Third Party Payments,Street Cleansing,Contract Services-Street Cleansing,22/09/2021,484779,124166.34,TIVOLI GROUP LTD,A02568,6,2021
Allerdale Borough Council,15101,Supplies & Services,Off-street - Owned,Equipment Costs,22/09/2021,484780,4851,METRIC GROUP LTD,A00568,6,2021
Allerdale Borough Council,16350,Supplies & Services,Off-street - Owned,Miscellaneous Expenses,22/09/2021,484781,3329.7,3C PAYMENT LIMITED,A02382,6,2021
Allerdale Borough Council,12101,Premises,Corporate Property Maintenance,External Maintenance & Decoration,08/09/2021,484782,640,S K DRAINAGE SOLUTIONS LTD,A02612,6,2021
Allerdale Borough Council,15101,Supplies & Services,Confidential Waste,Equipment Costs,08/09/2021,484783,192,J DUFFY LTD T/A PW CONF BUS SERVICES,A01846,6,2021
Allerdale Borough Council,15506,Supplies & Services,Food and Occupational Health,Professional Services,08/09/2021,484784,250,PARAGONVET LTD,A00566,6,2021
Allerdale Borough Council,50000,Capital Expenditure,Biodiversity & Green Infrast programmes,Capital Programme,28/09/2021,484785,5715.5,BOSTON SEEDS LIMITED,A02689,6,2021
Allerdale Borough Council,15501,Supplies & Services,New Finance System,Consultants Fees,08/09/2021,484786,4800,BLOOM PROCUREMENT SERVICES,A02360,6,2021
Allerdale Borough Council,12101,Premises,Corporate Property Maintenance,External Maintenance & Decoration,08/09/2021,484787,215,W G MACKAY LTD,A01711,6,2021
Allerdale Borough Council,16300,Supplies & Services,Festivals & Events,Budget-Miscellaneous,15/09/2021,484788,1150,FIRPRESS PRINTERS,A00063,6,2021
Allerdale Borough Council,16001,Supplies & Services,Banking and Interest,Bank Charges and Fees,08/09/2021,484789,1045.18,ALLPAY.NET LIMITED,A00714,6,2021
Allerdale Borough Council,16001,Supplies & Services,Banking and Interest,Bank Charges and Fees,08/09/2021,484790,27.01,ALLPAY.NET LIMITED,A00714,6,2021
Allerdale Borough Council,16001,Supplies & Services,Banking and Interest,Bank Charges and Fees,08/09/2021,484791,10.44,ALLPAY.NET LIMITED,A00714,6,2021
Allerdale Borough Council,16001,Supplies & Services,Banking and Interest,Bank Charges and Fees,08/09/2021,484792,13.17,ALLPAY.NET LIMITED,A00714,6,2021
Allerdale Borough Council,16001,Supplies & Services,Banking and Interest,Bank Charges and Fees,08/09/2021,484793,38.96,ALLPAY.NET LIMITED,A00714,6,2021
Allerdale Borough Council,16001,Supplies & Services,Banking and Interest,Bank Charges and Fees,08/09/2021,484794,10,ALLPAY.NET LIMITED,A00714,6,2021
Allerdale Borough Council,16001,Supplies & Services,Banking and Interest,Bank Charges and Fees,08/09/2021,484795,10,ALLPAY.NET LIMITED,A00714,6,2021
Allerdale Borough Council,16001,Supplies & Services,Banking and Interest,Bank Charges and Fees,08/09/2021,484796,20.96,ALLPAY.NET LIMITED,A00714,6,2021
Allerdale Borough Council,16001,Supplies & Services,Banking and Interest,Bank Charges and Fees,08/09/2021,484797,18.75,ALLPAY.NET LIMITED,A00714,6,2021
Allerdale Borough Council,16001,Supplies & Services,Banking and Interest,Bank Charges and Fees,08/09/2021,484798,13.54,ALLPAY.NET LIMITED,A00714,6,2021
Allerdale Borough Council,32111,Income,Off-street - Managed,Management Fee - Car Parks Income,08/09/2021,484799,427.29,ALLERDALE ,A00342,6,2021
Allerdale Borough Council,20150,Third Party Payments,Managed Car Parks,General Partnership Service Fees,08/09/2021,484800,2561.41,ST JOHNS COURT (CUMBRIA) LTD,A02826,6,2021
Allerdale Borough Council,16350,Supplies & Services,Homelessness,Miscellaneous Expenses,08/09/2021,484801,350,Redacted information - included personal information ,M02066,6,2021
Allerdale Borough Council,33117,Income,Off-street - Owned,Car Parks - Income from Machines,08/09/2021,484802,28.75,Redacted information - included personal information ,M02065,6,2021
Allerdale Borough Council,16350,Supplies & Services,Homelessness,Miscellaneous Expenses,08/09/2021,484803,950,Redacted information - included personal information ,M02067,6,2021
Allerdale Borough Council,16350,Supplies & Services,Prevention Fund,Miscellaneous Expenses,08/09/2021,484804,700,Redacted information - included personal information ,M02056,6,2021
Allerdale Borough Council,20150,Third Party Payments,Festivals & Events,General Partnership Service Fees,15/09/2021,484805,104,POD (NORTH WEST) LIMITED,A01977,6,2021
Allerdale Borough Council,20150,Third Party Payments,Festivals & Events,General Partnership Service Fees,15/09/2021,484806,105,FIRPRESS PRINTERS,A00063,6,2021
Allerdale Borough Council,20150,Third Party Payments,Festivals & Events,General Partnership Service Fees,15/09/2021,484807,200,FIRPRESS PRINTERS,A00063,6,2021
Allerdale Borough Council,15810,Supplies & Services,New Finance System,Software Licences,15/09/2021,484808,15625,TECHNOLOGY ONE UK LTD,A02853,6,2021
Allerdale Borough Council,20150,Third Party Payments,Festivals & Events,General Partnership Service Fees,15/09/2021,484809,4166.66,FLUID PRODUCTIONS LIMITED,A02009,6,2021
Allerdale Borough Council,20150,Third Party Payments,Festivals & Events,General Partnership Service Fees,15/09/2021,484810,895,Redacted information - included personal information ,A02686,6,2021
Allerdale Borough Council,20150,Third Party Payments,Festivals & Events,General Partnership Service Fees,15/09/2021,484811,3263.7,A W BLAKE LTD,A02687,6,2021
Allerdale Borough Council,15506,Supplies & Services,Economic Regeneration,Professional Services,22/09/2021,484812,22596.75,WINNING MOVES LTD,A02740,6,2021
Allerdale Borough Council,26000,Earmarked Reserves,MARYPORT PROMENADE,Budget-Expd funded from Reserve,15/09/2021,484813,1114.05,SHANE TAYLOR WELDING LTD,C00238,6,2021
Allerdale Borough Council,20150,Third Party Payments,Festivals & Events,General Partnership Service Fees,15/09/2021,484814,950,Redacted information - included personal information ,A02801,6,2021
Allerdale Borough Council,16350,Supplies & Services,Homelessness,Miscellaneous Expenses,15/09/2021,484815,848.43,CASTLES & COASTS,M01448,6,2021
Allerdale Borough Council,21101,Transfer Payments,Assistance - Housing Services,Private Individuals,15/09/2021,484816,200,ERIC'S REMOVAL SERVICES,M01995,6,2021
Allerdale Borough Council,12201,Premises,Corporate Property Maintenance,Internal Maintenance,15/09/2021,484817,11,Redacted information - included personal information ,M02005,6,2021
Allerdale Borough Council,16350,Supplies & Services,Homelessness,Miscellaneous Expenses,15/09/2021,484818,500,ID PROPERTIES,M00259,6,2021
Allerdale Borough Council,33117,Income,Off-street - Owned,Car Parks - Income from Machines,15/09/2021,484819,6.67,Redacted information - included personal information ,M02068,6,2021
Allerdale Borough Council,33117,Income,Off-street - Owned,Car Parks - Income from Machines,15/09/2021,484820,4.75,Redacted information - included personal information ,M02069,6,2021
Allerdale Borough Council,54105,Capital Expenditure,Disabled Facilities Grants,Grants  Private Individuals (Capital),15/09/2021,484821,1564.5,PARTNERSHIP IN PROPERTY MANAGEMENT LTD,X00120,6,2021
Allerdale Borough Council,33117,Income,Off-street - Owned,Car Parks - Income from Machines,15/09/2021,484822,9.33,Redacted information - included personal information ,M02070,6,2021
Allerdale Borough Council,33117,Income,Off-street - Owned,Car Parks - Income from Machines,15/09/2021,484823,18.67,Redacted information - included personal information ,M02071,6,2021
Allerdale Borough Council,20150,Third Party Payments,Festivals & Events,General Partnership Service Fees,15/09/2021,484824,400,GCS MEDICAL LTD,A02574,6,2021
Allerdale Borough Council,20150,Third Party Payments,Festivals & Events,General Partnership Service Fees,15/09/2021,484825,945,PEDAL POWER PEOPLE LTD,A02867,6,2021
Allerdale Borough Council,15511,Supplies & Services,Street Scene,Removal of Vehicles,15/09/2021,484826,149,JACKSONS RECOVERY T/A BLACKWOOD SERVICE STATION LTD,A02819,6,2021
Allerdale Borough Council,15511,Supplies & Services,Street Scene,Removal of Vehicles,15/09/2021,484827,149,JACKSONS RECOVERY T/A BLACKWOOD SERVICE STATION LTD,A02819,6,2021
Allerdale Borough Council,15101,Supplies & Services,Street Scene,Equipment Costs,15/09/2021,484828,37.16,RELIANCE HIGH-TECH LTD,C00123,6,2021
Allerdale Borough Council,15506,Supplies & Services,Environmental Protection,Professional Services,15/09/2021,484829,4199.17,UNITED UTILITIES PLC,A01657,6,2021
Allerdale Borough Council,15405,Supplies & Services,Electoral Registration,Use of External Printers,15/09/2021,484830,2355.52,ADARE SEC LIMITED,A02306,6,2021
Allerdale Borough Council,12101,Premises,Street Naming and Numbering,External Maintenance & Decoration,28/09/2021,484831,71.5,TIVOLI GROUP LTD,A02568,6,2021
Allerdale Borough Council,12305,Premises,Multi Storey Car Park Utilities & Maint,Inspections and Services,15/09/2021,484832,12.36,PHS GROUP LTD,C00028,6,2021
Allerdale Borough Council,15812,Supplies & Services,Rogue Landlord Fund,Software Development,15/09/2021,484833,5182,LOCALPAD LIMITED,A02878,6,2021
Allerdale Borough Council,15501,Supplies & Services,Planning and Development,Consultants Fees,28/09/2021,484834,1659.3,WOOD GROUP UK LTD,A02851,6,2021
Allerdale Borough Council,15501,Supplies & Services,Planning and Development,Consultants Fees,28/09/2021,484835,831.37,WOOD GROUP UK LTD,A02851,6,2021
Allerdale Borough Council,10110,Employee Costs,Busy Bees Childcare Scheme,Salary Sacrifice,15/09/2021,484836,16.23,COMPUTERSHARE VOUCHER SERVICES,A00991,6,2021
Allerdale Borough Council,10110,Employee Costs,Busy Bees Childcare Scheme,Salary Sacrifice,15/09/2021,484837,295,COMPUTERSHARE VOUCHER SERVICES,A00991,6,2021
Allerdale Borough Council,16101,Supplies & Services,Planning and Development,Statutory Notices,15/09/2021,484838,334.08,NEWSQUEST MEDIA GROUP,A02348,6,2021
Allerdale Borough Council,16300,Supplies & Services,Festivals & Events,Budget-Miscellaneous,15/09/2021,484839,296,POD (NORTH WEST) LIMITED,A01977,6,2021
Allerdale Borough Council,10401,Employee Costs,Housing Improvement,Agency Staff Costs,15/09/2021,484840,600,G2 RECRUITMENT SOLUTIONS LTD,C00198,6,2021
Allerdale Borough Council,15810,Supplies & Services,Corporate Improvement Team,Software Licences,28/09/2021,484841,14000,DIGITAL INTERACTIVE LTD,A02879,6,2021
Allerdale Borough Council,15506,Supplies & Services,Maryport HAZ,Professional Services,15/09/2021,484842,1910,SCOTTISH LIME CENTRE TRUST,A00494,6,2021
Allerdale Borough Council,15103,Supplies & Services,Food and Occupational Health,Purchase of Materials,28/09/2021,484843,25.86,ARCO LIMITED ,A00045,6,2021
Allerdale Borough Council,10200,Employee Costs,Human Resources Pay Group,Budget-Employee Expenses,22/09/2021,484844,3.05,K&R BADGES LIMITED,A01328,6,2021
Allerdale Borough Council,15501,Supplies & Services,Environmental Protection,Consultants Fees,15/09/2021,484845,1467,CHEVIN GEOENVIRO ASSOCIATES LTD,A02811,6,2021
Allerdale Borough Council,15506,Supplies & Services,Environmental Protection,Professional Services,15/09/2021,484846,1990,OLFASENSE UK LTD,A02874,6,2021
Allerdale Borough Council,15501,Supplies & Services,Building Control - Chargeable,Consultants Fees,15/09/2021,484847,50,M&P GADSDEN CONSULTING ENGINEERS LTD,A02713,6,2021
Allerdale Borough Council,15501,Supplies & Services,Planning and Development,Consultants Fees,22/09/2021,484848,150,M&P GADSDEN CONSULTING ENGINEERS LTD,A02713,6,2021
Allerdale Borough Council,20150,Third Party Payments,Festivals & Events,General Partnership Service Fees,15/09/2021,484849,175,GREENWICH LEISURE LTD,A00136,6,2021
Allerdale Borough Council,12306,Premises,Public Convenience Cleaning,Legionella Inspections and Services,22/09/2021,484850,300,CLEARWATER TECHNOLOGY,A02153,6,2021
Allerdale Borough Council,15101,Supplies & Services,Multi-storey Car Park,Equipment Costs,22/09/2021,484851,2437.5,METRIC GROUP LTD,A00568,6,2021
Allerdale Borough Council,12301,Premises,Corporate Property Maintenance,Security,22/09/2021,484852,330.8,G4S SECURE SOLUTIONS,A01597,6,2021
Allerdale Borough Council,12101,Premises,Street Naming and Numbering,External Maintenance & Decoration,28/09/2021,484853,107,TIVOLI GROUP LTD,A02568,6,2021
Allerdale Borough Council,12101,Premises,Street Naming and Numbering,External Maintenance & Decoration,28/09/2021,484854,59,TIVOLI GROUP LTD,A02568,6,2021
Allerdale Borough Council,15302,Supplies & Services,Public Convenience Cleaning,Protective Clothing,,484855,17.7,ARCO LIMITED ,A00045,6,2021
Allerdale Borough Council,15602,Supplies & Services,Food Safety & Occupational Health,Business Reply Licences,15/09/2021,484856,8.84,ROYAL MAIL LETTERS,X00021,6,2021
Allerdale Borough Council,12402,Premises,Tenanted Properties,Electricity,15/09/2021,484857,39.14,OPUS ENERGY,X00226,6,2021
Allerdale Borough Council,10110,Employee Costs,Customer & Transformation Programme,Salary Sacrifice,15/09/2021,484858,1057.34,TUSKERDIRECT LTD,A02186,6,2021
Allerdale Borough Council,12101,Premises,Environmental Initiatives,External Maintenance & Decoration,28/09/2021,484859,270,TIVOLI GROUP LTD,A02568,6,2021
Allerdale Borough Council,16006,Supplies & Services,Off-street - Owned,Mii Permit charges,22/09/2021,484860,55.17,CHIPSIDE LIMITED,A00004,6,2021
Allerdale Borough Council,16006,Supplies & Services,Off-street - Owned,Mii Permit charges,22/09/2021,484861,1127.22,CHIPSIDE LIMITED,A00004,6,2021
Allerdale Borough Council,15101,Supplies & Services,Off-street - Owned,Equipment Costs,28/09/2021,484862,895.48,METRIC GROUP LTD,A00568,6,2021
Allerdale Borough Council,15102,Supplies & Services,Off-street - Owned,Equipment Repair & Maintenance,15/09/2021,484863,600,GORDON GRAHAM ROADMARKINGS LTD,C00165,6,2021
Allerdale Borough Council,16301,Supplies & Services,Sports Development,Reimbursement,15/09/2021,484864,400,S K DRAINAGE SOLUTIONS LTD,A02612,6,2021
Allerdale Borough Council,21150,Transfer Payments,Carnegie Trust Contribution,General Grants,15/09/2021,484865,5000,CARNEGIE THEATRE TRUST,R00015,6,2021
Allerdale Borough Council,21150,Transfer Payments,Carnegie Trust Contribution,General Grants,15/09/2021,484866,5000,CARNEGIE THEATRE TRUST,R00015,6,2021
Allerdale Borough Council,20302,Third Party Payments,Street Cleansing,Contract Services-Street Cleansing,15/09/2021,484867,647,CUMBRIA WASTE MANAGEMENT LTD,A01304,6,2021
Allerdale Borough Council,15100,Supplies & Services,Rapid Rehousing Pathway (RRP),"Budget-Equipment, Furniture & Materials",27/09/2021,484868,112.66,BARCLAYCARD COMMERCIAL ,X00207,6,2021
Allerdale Borough Council,16350,Supplies & Services,Reopening High Streets,Miscellaneous Expenses,22/09/2021,484869,150,FLETCHER CHRISTIAN,M02072,6,2021
Allerdale Borough Council,16350,Supplies & Services,Reopening High Streets,Miscellaneous Expenses,22/09/2021,484870,150,L A COCKERMOUTH LTD,M01721,6,2021
Allerdale Borough Council,15805,Supplies & Services,IT Services,Computer Network,22/09/2021,484871,765.94,NOMINET UK,A02865,6,2021
Allerdale Borough Council,15601,Supplies & Services,Corporate Postage and Stationary,Postage,22/09/2021,484872,526.08,UK MAIL GROUP PLC,A02371,6,2021
Allerdale Borough Council,20150,Third Party Payments,Festivals & Events,General Partnership Service Fees,22/09/2021,484873,1692.5,PORT SUNLIGHT SEA DOGS,A02880,6,2021
Allerdale Borough Council,15501,Supplies & Services,Building Control - Chargeable,Consultants Fees,22/09/2021,484874,50,M&P GADSDEN CONSULTING ENGINEERS LTD,A02713,6,2021
Allerdale Borough Council,15501,Supplies & Services,Building Control - Chargeable,Consultants Fees,22/09/2021,484875,50,M&P GADSDEN CONSULTING ENGINEERS LTD,A02713,6,2021
Allerdale Borough Council,15501,Supplies & Services,Building Control - Chargeable,Consultants Fees,22/09/2021,484876,50,M&P GADSDEN CONSULTING ENGINEERS LTD,A02713,6,2021
Allerdale Borough Council,15506,Supplies & Services,Farming in Protected Landscapes,Professional Services,22/09/2021,484877,150,Redacted information - included personal information ,A02871,6,2021
Allerdale Borough Council,15101,Supplies & Services,Members Services,Equipment Costs,28/09/2021,484878,2000,CIVICA UK LIMITED,A00006,6,2021
Allerdale Borough Council,15101,Supplies & Services,Members Services,Equipment Costs,22/09/2021,484879,991,RHYTHM AV LTD,A01139,6,2021
Allerdale Borough Council,12405,Premises,Customer Services Pay Group,Rentals and Lease Charges,22/09/2021,484880,1250,SOLWAY PLAIN FUTURES LTD,A01194,6,2021
Allerdale Borough Council,20150,Third Party Payments,Community Safety,General Partnership Service Fees,22/09/2021,484881,140,FIRPRESS PRINTERS,A00063,6,2021
Allerdale Borough Council,15506,Supplies & Services,Legal Services,Professional Services,22/09/2021,484882,651.5,BURNETTS SOLICITORS,A00129,6,2021
Allerdale Borough Council,15501,Supplies & Services,Planning and Development,Consultants Fees,,484883,6690,Redacted information - included personal information ,A01574,6,2021
Allerdale Borough Council,20104,Third Party Payments,Street Cleansing,Street Cleansing,28/09/2021,484884,1120,TIVOLI GROUP LTD,A02568,6,2021
Allerdale Borough Council,20101,Third Party Payments,Recycling,Cleansing Contract,22/09/2021,484885,63901.62,CUMBRIA WASTE MANAGEMENT LTD,A01304,6,2021
Allerdale Borough Council,12101,Premises,Corporate Property Maintenance,External Maintenance & Decoration,22/09/2021,484886,341,ASHCROFT DEMOLITION (CUMBRIA) LTD,C00197,6,2021
Allerdale Borough Council,12101,Premises,Car Parks Inspection & Maintenance,External Maintenance & Decoration,22/09/2021,484887,1140,ASHCROFT DEMOLITION (CUMBRIA) LTD,C00197,6,2021
Allerdale Borough Council,12101,Premises,Coastal Protection and Inland Flooding,External Maintenance & Decoration,22/09/2021,484888,1170,ASHCROFT DEMOLITION (CUMBRIA) LTD,C00197,6,2021
Allerdale Borough Council,12101,Premises,Corporate Property Maintenance,External Maintenance & Decoration,22/09/2021,484889,2127,ASHCROFT DEMOLITION (CUMBRIA) LTD,C00197,6,2021
Allerdale Borough Council,12101,Premises,Corporate Property Maintenance,External Maintenance & Decoration,22/09/2021,484890,3049,ASHCROFT DEMOLITION (CUMBRIA) LTD,C00197,6,2021
Allerdale Borough Council,12101,Premises,Corporate Property Maintenance,External Maintenance & Decoration,22/09/2021,484891,1076,ASHCROFT DEMOLITION (CUMBRIA) LTD,C00197,6,2021
Allerdale Borough Council,12101,Premises,Corporate Property Maintenance,External Maintenance & Decoration,28/09/2021,484892,297.22,ASHCROFT DEMOLITION (CUMBRIA) LTD,C00197,6,2021
Allerdale Borough Council,15101,Supplies & Services,Homelessness,Equipment Costs,27/09/2021,484893,82.66,BARCLAYCARD COMMERCIAL ,X00207,6,2021
Allerdale Borough Council,16350,Supplies & Services,Chief Executive,Miscellaneous Expenses,27/09/2021,484894,361.74,BARCLAYCARD COMMERCIAL ,X00207,6,2021
Allerdale Borough Council,10601,Employee Costs,Training,External Courses & Seminar Fees,22/09/2021,484895,105,Redacted information - included personal information ,M02073,6,2021
Allerdale Borough Council,54105,Capital Expenditure,Disabled Facilities Grants,Grants  Private Individuals (Capital),22/09/2021,484896,5326.18,FEARON BUILDERS,C00069,6,2021
Allerdale Borough Council,54105,Capital Expenditure,Disabled Facilities Grants,Grants  Private Individuals (Capital),22/09/2021,484897,5458,PARTNERSHIP IN PROPERTY MANAGEMENT LTD,X00120,6,2021
Allerdale Borough Council,54105,Capital Expenditure,Disabled Facilities Grants,Grants  Private Individuals (Capital),22/09/2021,484898,3208,PARTNERSHIP IN PROPERTY MANAGEMENT LTD,X00120,6,2021
Allerdale Borough Council,54105,Capital Expenditure,Disabled Facilities Grants,Grants  Private Individuals (Capital),22/09/2021,484899,5759,PARTNERSHIP IN PROPERTY MANAGEMENT LTD,X00120,6,2021
Allerdale Borough Council,54105,Capital Expenditure,Disabled Facilities Grants,Grants  Private Individuals (Capital),22/09/2021,484900,3616.6,PARTNERSHIP IN PROPERTY MANAGEMENT LTD,X00120,6,2021
Allerdale Borough Council,54105,Capital Expenditure,Disabled Facilities Grants,Grants  Private Individuals (Capital),22/09/2021,484901,15444.81,W W BUILDERS LIMITED,X00212,6,2021
Allerdale Borough Council,54105,Capital Expenditure,Disabled Facilities Grants,Grants  Private Individuals (Capital),22/09/2021,484902,18235,W W BUILDERS LIMITED,X00212,6,2021
Allerdale Borough Council,15402,Supplies & Services,Multi-functional Printers,Photocopier Charges,22/09/2021,484903,4.57,KONICA MINOLTA BUSINESS SOLUTIONS UK LTD,A01556,6,2021
Allerdale Borough Council,15402,Supplies & Services,Multi-functional Printers,Photocopier Charges,22/09/2021,484904,163.98,KONICA MINOLTA BUSINESS SOLUTIONS UK LTD,A01556,6,2021
Allerdale Borough Council,15402,Supplies & Services,Multi-functional Printers,Photocopier Charges,22/09/2021,484905,3.28,KONICA MINOLTA BUSINESS SOLUTIONS UK LTD,A01556,6,2021
Allerdale Borough Council,15402,Supplies & Services,Multi-functional Printers,Photocopier Charges,22/09/2021,484906,181.32,KONICA MINOLTA BUSINESS SOLUTIONS UK LTD,A01556,6,2021
Allerdale Borough Council,20150,Third Party Payments,Festivals & Events,General Partnership Service Fees,22/09/2021,484907,1800,Redacted information - included personal information ,A02883,6,2021
Allerdale Borough Council,15501,Supplies & Services,Building Control - Chargeable,Consultants Fees,22/09/2021,484908,50,M&P GADSDEN CONSULTING ENGINEERS LTD,A02713,6,2021
Allerdale Borough Council,20150,Third Party Payments,Festivals & Events,General Partnership Service Fees,,484909,1800,GCS MEDICAL LTD,A02574,6,2021
Allerdale Borough Council,15101,Supplies & Services,Confidential Waste,Equipment Costs,22/09/2021,484910,224,J DUFFY LTD T/A PW CONF BUS SERVICES,A01846,6,2021
Allerdale Borough Council,15501,Supplies & Services,Coronavirus Enforcement,Consultants Fees,22/09/2021,484911,3139,G2 RECRUITMENT SOLUTIONS LTD,C00198,6,2021
Allerdale Borough Council,15101,Supplies & Services,Solway AONB,Equipment Costs,22/09/2021,484912,54.15,ASPATRIA FARMERS LIMITED,A00736,6,2021
Allerdale Borough Council,15101,Supplies & Services,Confidential Waste,Equipment Costs,22/09/2021,484913,192,J DUFFY LTD T/A PW CONF BUS SERVICES,A01846,6,2021
Allerdale Borough Council,15501,Supplies & Services,Building Control - Chargeable,Consultants Fees,22/09/2021,484914,418,ASHTEAD PLANT HIRE LTD/SUNBELT RENTALS LTD,C00019,6,2021
Allerdale Borough Council,10401,Employee Costs,Licensing Agency Staff,Agency Staff Costs,22/09/2021,484915,2470,G2 RECRUITMENT SOLUTIONS LTD,C00198,6,2021
Allerdale Borough Council,10401,Employee Costs,Licensing Agency Staff,Agency Staff Costs,22/09/2021,484916,1425,G2 RECRUITMENT SOLUTIONS LTD,C00198,6,2021
Allerdale Borough Council,12202,Premises,Corporate Property Maintenance,Electrical Repairs and Service,22/09/2021,484917,229.2,JJ GROUP (CONTRACTING) LTD,C00038,6,2021
Allerdale Borough Council,12202,Premises,Corporate Property Maintenance,Electrical Repairs and Service,22/09/2021,484918,105,JJ GROUP (CONTRACTING) LTD,C00038,6,2021
Allerdale Borough Council,12202,Premises,Public Convenience Cleaning,Electrical Repairs and Service,22/09/2021,484919,207.3,JJ GROUP (CONTRACTING) LTD,C00038,6,2021
Allerdale Borough Council,12202,Premises,Corporate Property Maintenance,Electrical Repairs and Service,22/09/2021,484920,2881.9,JJ GROUP (CONTRACTING) LTD,C00038,6,2021
Allerdale Borough Council,15100,Supplies & Services,Homelessness,"Budget-Equipment, Furniture & Materials",27/09/2021,484921,129.7,BARCLAYCARD COMMERCIAL ,X00207,6,2021
Allerdale Borough Council,15100,Supplies & Services,Bereavement Services,"Budget-Equipment, Furniture & Materials",,484922,71,GRANART,A00644,6,2021
Allerdale Borough Council,14101,Transport,Allerdale Fleet,Vehicle Leasing,,484923,3325,DOBIES VAUXHALL,A00254,6,2021
Allerdale Borough Council,12405,Premises,NSAP,Rentals and Lease Charges,22/09/2021,484924,660,READ GUESTHOUSE,A02591,6,2021
Allerdale Borough Council,15514,Supplies & Services,Mayoral Services,Public Entertainment,28/09/2021,484925,155.75,THOMAS KAY PHOTOGRAPHY,A02868,6,2021
Allerdale Borough Council,16300,Supplies & Services,Festivals & Events,Budget-Miscellaneous,28/09/2021,484926,100,CARLISLE COMMUNITY CYCLE HUB,A02886,6,2021
Allerdale Borough Council,16300,Supplies & Services,Festivals & Events,Budget-Miscellaneous,28/09/2021,484927,456.7,Redacted information - included personal information ,A02686,6,2021
Allerdale Borough Council,15501,Supplies & Services,Planning and Development,Consultants Fees,22/09/2021,484928,1497.5,Redacted information - included personal information ,A01574,6,2021
Allerdale Borough Council,20150,Third Party Payments,Festivals & Events,General Partnership Service Fees,22/09/2021,484929,6.57,AMAZON PAYMENTS UK LTD,A02682,6,2021
Allerdale Borough Council,20150,Third Party Payments,Festivals & Events,General Partnership Service Fees,22/09/2021,484930,32.92,AMAZON PAYMENTS UK LTD,A02682,6,2021
Allerdale Borough Council,20150,Third Party Payments,Festivals & Events,General Partnership Service Fees,22/09/2021,484931,32.92,AMAZON PAYMENTS UK LTD,A02682,6,2021
Allerdale Borough Council,20150,Third Party Payments,Festivals & Events,General Partnership Service Fees,22/09/2021,484932,32.92,AMAZON PAYMENTS UK LTD,A02682,6,2021
Allerdale Borough Council,20150,Third Party Payments,Festivals & Events,General Partnership Service Fees,22/09/2021,484933,32.92,AMAZON PAYMENTS UK LTD,A02682,6,2021
Allerdale Borough Council,15601,Supplies & Services,Electoral Registration,Postage,22/09/2021,484934,18915.39,ADARE SEC LIMITED,A02306,6,2021
Allerdale Borough Council,12201,Premises,Corporate Property Maintenance,Internal Maintenance,,484935,6.11,FAST KEY SERVICES LTD,A01537,6,2021
Allerdale Borough Council,16101,Supplies & Services,Planning and Development,Statutory Notices,,484936,367.49,NEWSQUEST MEDIA GROUP,A02348,6,2021
Allerdale Borough Council,15601,Supplies & Services,Electoral Registration,Postage,22/09/2021,484937,-4744.23,ADARE SEC LIMITED,A02306,6,2021
Allerdale Borough Council,15703,Supplies & Services,IT Services,Call Charges,22/09/2021,484938,1548.45,BRITISH TELECOM PLC,A00363,6,2021
Allerdale Borough Council,15811,Supplies & Services,IT Services,Software Maintenance,,484939,3570.74,PHOENIX SOFTWARE LTD,A00229,6,2021
Allerdale Borough Council,15703,Supplies & Services,IT Services,Call Charges,22/09/2021,484940,579.63,BRITISH TELECOM PLC,A00363,6,2021
Allerdale Borough Council,12402,Premises,Footway Lighting,Electricity,22/09/2021,484941,5564.71,N POWER ,X00015,6,2021
Allerdale Borough Council,12402,Premises,Car Parks Inspection & Maintenance,Electricity,22/09/2021,484942,100.3,N POWER ,X00015,6,2021
Allerdale Borough Council,12402,Premises,Corporate Property Maintenance,Electricity,22/09/2021,484943,402.81,N POWER ,X00015,6,2021
Allerdale Borough Council,12402,Premises,Markets,Electricity,22/09/2021,484944,66.8,E.ON ,X00314,6,2021
Allerdale Borough Council,12402,Premises,Markets,Electricity,22/09/2021,484945,44.55,E.ON ,X00314,6,2021
Allerdale Borough Council,12403,Premises,Corporate Property Maintenance,Gas,22/09/2021,484946,100.03,CORONA ENERGY,X00003,6,2021
Allerdale Borough Council,12403,Premises,Homelessness,Gas,22/09/2021,484947,23.54,CORONA ENERGY,X00003,6,2021
Allerdale Borough Council,12403,Premises,Corporate Property Maintenance,Gas,22/09/2021,484948,105.09,CORONA ENERGY,X00003,6,2021
Allerdale Borough Council,12403,Premises,Corporate Property Maintenance,Gas,22/09/2021,484949,20.36,CORONA ENERGY,X00003,6,2021
Allerdale Borough Council,12403,Premises,Domestic Abuse Funding,Gas,22/09/2021,484950,31.6,CORONA ENERGY,X00003,6,2021
Allerdale Borough Council,12403,Premises,Corporate Property Maintenance,Gas,22/09/2021,484951,97.72,CORONA ENERGY,X00003,6,2021
Allerdale Borough Council,12403,Premises,Domestic Abuse Funding,Gas,22/09/2021,484952,34.89,CORONA ENERGY,X00003,6,2021
Allerdale Borough Council,12403,Premises,Homelessness,Gas,22/09/2021,484953,22.84,CORONA ENERGY,X00003,6,2021
Allerdale Borough Council,12403,Premises,Homelessness,Gas,22/09/2021,484954,31.4,CORONA ENERGY,X00003,6,2021
Allerdale Borough Council,12403,Premises,Homelessness,Gas,22/09/2021,484955,23.3,CORONA ENERGY,X00003,6,2021
Allerdale Borough Council,12403,Premises,Homelessness,Gas,22/09/2021,484956,25.05,CORONA ENERGY,X00003,6,2021
Allerdale Borough Council,12403,Premises,Corporate Property Maintenance,Gas,22/09/2021,484957,59.21,CORONA ENERGY,X00003,6,2021
Allerdale Borough Council,12403,Premises,Corporate Property Maintenance,Gas,22/09/2021,484958,94.78,CORONA ENERGY,X00003,6,2021
Allerdale Borough Council,12403,Premises,Corporate Property Maintenance,Gas,22/09/2021,484959,65.72,CORONA ENERGY,X00003,6,2021
Allerdale Borough Council,12403,Premises,Domestic Abuse Funding,Gas,22/09/2021,484960,29.62,CORONA ENERGY,X00003,6,2021
Allerdale Borough Council,12403,Premises,Homelessness,Gas,22/09/2021,484961,22.56,CORONA ENERGY,X00003,6,2021
Allerdale Borough Council,12403,Premises,Homelessness,Gas,22/09/2021,484962,23.59,CORONA ENERGY,X00003,6,2021
Allerdale Borough Council,12403,Premises,Homelessness,Gas,22/09/2021,484963,22.1,CORONA ENERGY,X00003,6,2021
Allerdale Borough Council,12403,Premises,Homelessness,Gas,22/09/2021,484964,21.69,CORONA ENERGY,X00003,6,2021
Allerdale Borough Council,12403,Premises,Domestic Abuse Funding,Gas,22/09/2021,484965,51.44,CORONA ENERGY,X00003,6,2021
Allerdale Borough Council,12403,Premises,Homelessness,Gas,22/09/2021,484966,51.44,CORONA ENERGY,X00003,6,2021
Allerdale Borough Council,12403,Premises,Domestic Abuse Funding,Gas,22/09/2021,484967,90.94,CORONA ENERGY,X00003,6,2021
Allerdale Borough Council,12403,Premises,Homelessness,Gas,22/09/2021,484968,81.78,CORONA ENERGY,X00003,6,2021
Allerdale Borough Council,12403,Premises,Homelessness,Gas,22/09/2021,484969,52.92,CORONA ENERGY,X00003,6,2021
Allerdale Borough Council,12403,Premises,Homelessness,Gas,22/09/2021,484970,71.61,CORONA ENERGY,X00003,6,2021
Allerdale Borough Council,12403,Premises,Domestic Abuse Funding,Gas,22/09/2021,484971,55.92,CORONA ENERGY,X00003,6,2021
Allerdale Borough Council,12403,Premises,Homelessness,Gas,22/09/2021,484972,25.5,CORONA ENERGY,X00003,6,2021
Allerdale Borough Council,12403,Premises,Homelessness,Gas,22/09/2021,484973,32.12,CORONA ENERGY,X00003,6,2021
Allerdale Borough Council,12403,Premises,Domestic Abuse Funding,Gas,22/09/2021,484974,37.76,CORONA ENERGY,X00003,6,2021
Allerdale Borough Council,12403,Premises,Domestic Abuse Funding,Gas,22/09/2021,484975,28.59,CORONA ENERGY,X00003,6,2021
Allerdale Borough Council,12403,Premises,Domestic Abuse Funding,Gas,22/09/2021,484976,20.83,CORONA ENERGY,X00003,6,2021
Allerdale Borough Council,12403,Premises,Homelessness,Gas,22/09/2021,484977,30.92,CORONA ENERGY,X00003,6,2021
Allerdale Borough Council,12403,Premises,Homelessness,Gas,22/09/2021,484978,44.18,CORONA ENERGY,X00003,6,2021
Allerdale Borough Council,12403,Premises,Homelessness,Gas,22/09/2021,484979,27.86,CORONA ENERGY,X00003,6,2021
Allerdale Borough Council,12403,Premises,Homelessness,Gas,22/09/2021,484980,53.41,CORONA ENERGY,X00003,6,2021
Allerdale Borough Council,12403,Premises,Homelessness,Gas,22/09/2021,484981,52.43,CORONA ENERGY,X00003,6,2021
Allerdale Borough Council,12403,Premises,Homelessness,Gas,22/09/2021,484982,29.41,CORONA ENERGY,X00003,6,2021
Allerdale Borough Council,10401,Employee Costs,Housing Improvement,Agency Staff Costs,22/09/2021,484983,712.5,G2 RECRUITMENT SOLUTIONS LTD,C00198,6,2021
Allerdale Borough Council,20150,Third Party Payments,Festivals & Events,General Partnership Service Fees,22/09/2021,484984,2782.5,AJ SECURITY,A02716,6,2021
Allerdale Borough Council,21303,Transfer Payments,Parish Councils,Parish Councils,28/09/2021,484985,14173.07,ABOVE DERWENT PC,X00042,6,2021
Allerdale Borough Council,21303,Transfer Payments,Parish Councils,Parish Councils,28/09/2021,484986,2600,AIKTON P.C.,X00043,6,2021
Allerdale Borough Council,21303,Transfer Payments,Parish Councils,Parish Councils,28/09/2021,484987,4850,ALLHALLOWS P.C.,X00045,6,2021
Allerdale Borough Council,21303,Transfer Payments,Parish Councils,Parish Councils,28/09/2021,484988,6000,ALLONBY P.C.,X00046,6,2021
Allerdale Borough Council,21303,Transfer Payments,Parish Councils,Parish Councils,28/09/2021,484989,35442,ASPATRIA T.C.,X00047,6,2021
Allerdale Borough Council,21303,Transfer Payments,Parish Councils,Parish Councils,28/09/2021,484990,3675,BASSENTHWAITE P.C.,X00048,6,2021
Allerdale Borough Council,21303,Transfer Payments,Parish Councils,Parish Councils,28/09/2021,484991,5325,BLENNERHASSET P.C.,X00050,6,2021
Allerdale Borough Council,21303,Transfer Payments,Parish Councils,Parish Councils,28/09/2021,484992,1700,BLINDBOTHEL P.C.,X00051,6,2021
Allerdale Borough Council,21303,Transfer Payments,Parish Councils,Parish Councils,28/09/2021,484993,3750,BLINDCRAKE P.C.,X00052,6,2021
Allerdale Borough Council,21303,Transfer Payments,Parish Councils,Parish Councils,28/09/2021,484994,2575,BOLTONS P.C.,X00053,6,2021
Allerdale Borough Council,21303,Transfer Payments,Parish Councils,Parish Councils,28/09/2021,484995,3413.02,BORROWDALE P.C.,X00054,6,2021
Allerdale Borough Council,21303,Transfer Payments,Parish Councils,Parish Councils,28/09/2021,484996,3000,BOTHEL P.C.,X00055,6,2021
Allerdale Borough Council,21303,Transfer Payments,Parish Councils,Parish Councils,28/09/2021,484997,9392,BOWNESS P.C.,X00056,6,2021
Allerdale Borough Council,21303,Transfer Payments,Parish Councils,Parish Councils,28/09/2021,484998,3250,BRIDEKIRK P.C.,X00057,6,2021
Allerdale Borough Council,21303,Transfer Payments,Parish Councils,Parish Councils,28/09/2021,484999,5700,BRIGHAM P.C.,X00058,6,2021
Allerdale Borough Council,21303,Transfer Payments,Parish Councils,Parish Councils,28/09/2021,485000,3000,BROMFIELD P.C.,X00059,6,2021
Allerdale Borough Council,21303,Transfer Payments,Parish Councils,Parish Councils,28/09/2021,485001,12887.63,BROUGHTON P.C.,X00060,6,2021
Allerdale Borough Council,21303,Transfer Payments,Parish Councils,Parish Councils,28/09/2021,485002,9000,BROUGHTON MOOR P.C.,X00061,6,2021
Allerdale Borough Council,21303,Transfer Payments,Parish Councils,Parish Councils,28/09/2021,485003,765,BUTTERMERE P.C.,X00062,6,2021
Allerdale Borough Council,21303,Transfer Payments,Parish Councils,Parish Councils,28/09/2021,485004,9165,CALDBECK P.C.,X00063,6,2021
Allerdale Borough Council,21303,Transfer Payments,Parish Councils,Parish Councils,28/09/2021,485005,750,CAMERTON P.C.,X00064,6,2021
Allerdale Borough Council,21303,Transfer Payments,Parish Councils,Parish Councils,28/09/2021,485006,126615,COCKERMOUTH T.C.,X00065,6,2021
Allerdale Borough Council,21303,Transfer Payments,Parish Councils,Parish Councils,28/09/2021,485007,11088,CROSSCANONBY P.C.,X00066,6,2021
Allerdale Borough Council,21303,Transfer Payments,Parish Councils,Parish Councils,28/09/2021,485008,8312.5,DEAN P.C.,X00067,6,2021
Allerdale Borough Council,21303,Transfer Payments,Parish Councils,Parish Councils,28/09/2021,485009,18500,DEARHAM P.C.,X00068,6,2021
Allerdale Borough Council,21303,Transfer Payments,Parish Councils,Parish Councils,28/09/2021,485010,925,DUNDRAW P.C.,X00069,6,2021
Allerdale Borough Council,21303,Transfer Payments,Parish Councils,Parish Councils,28/09/2021,485011,4118.15,EMBLETON P.C.,X00070,6,2021
Allerdale Borough Council,21303,Transfer Payments,Parish Councils,Parish Councils,28/09/2021,485012,4500,GILCRUX P.C.,X00071,6,2021
Allerdale Borough Council,21303,Transfer Payments,Parish Councils,Parish Councils,28/09/2021,485013,5000,GREAT CLIFTON P.C.,X00072,6,2021
Allerdale Borough Council,21303,Transfer Payments,Parish Councils,Parish Councils,28/09/2021,485014,5000,GREYSOUTHEN P.C.,X00073,6,2021
Allerdale Borough Council,21303,Transfer Payments,Parish Councils,Parish Councils,28/09/2021,485015,2450,HAYTON & MEALO P.C.,X00074,6,2021
Allerdale Borough Council,21303,Transfer Payments,Parish Councils,Parish Councils,28/09/2021,485016,6285,HOLME ABBEY P.C.,X00075,6,2021
Allerdale Borough Council,21303,Transfer Payments,Parish Councils,Parish Councils,28/09/2021,485017,3430,HOLME EAST WEAVER P.C.,X00076,6,2021
Allerdale Borough Council,21303,Transfer Payments,Parish Councils,Parish Councils,28/09/2021,485018,3000,HOLME LOW P.C.,X00077,6,2021
Allerdale Borough Council,21303,Transfer Payments,Parish Councils,Parish Councils,28/09/2021,485019,2500,HOLME ST CUTHBERT P.C.,X00078,6,2021
Allerdale Borough Council,21303,Transfer Payments,Parish Councils,Parish Councils,28/09/2021,485020,3000,IREBY & ULDALE P.C.,X00079,6,2021
Allerdale Borough Council,21303,Transfer Payments,Parish Councils,Parish Councils,28/09/2021,485021,136848.5,KESWICK T.C.,X00080,6,2021
Allerdale Borough Council,21303,Transfer Payments,Parish Councils,Parish Councils,28/09/2021,485022,4375,KIRKBAMPTON P.C.,X00081,6,2021
Allerdale Borough Council,21303,Transfer Payments,Parish Councils,Parish Councils,28/09/2021,485023,4850,KIRKBRIDE P.C.,X00082,6,2021
Allerdale Borough Council,21303,Transfer Payments,Parish Councils,Parish Councils,28/09/2021,485024,3750,LITTLE CLIFTON P.C.,X00083,6,2021
Allerdale Borough Council,21303,Transfer Payments,Parish Councils,Parish Councils,28/09/2021,485025,2861,LORTON P.C.,X00084,6,2021
Allerdale Borough Council,21303,Transfer Payments,Parish Councils,Parish Councils,28/09/2021,485026,1391.5,LOWESWATER P.C.,X00085,6,2021
Allerdale Borough Council,21303,Transfer Payments,Parish Councils,Parish Councils,28/09/2021,485027,179625,MARYPORT T.C.,X00086,6,2021
Allerdale Borough Council,21303,Transfer Payments,Parish Councils,Parish Councils,28/09/2021,485028,5286.5,OUGHTERSIDE & ALLERBY PC,X00044,6,2021
Allerdale Borough Council,21303,Transfer Payments,Parish Councils,Parish Councils,28/09/2021,485029,5100,PAPCASTLE P.C.,X00087,6,2021
Allerdale Borough Council,21303,Transfer Payments,Parish Councils,Parish Councils,28/09/2021,485030,2925,PLUMBLAND P.C.,X00088,6,2021
Allerdale Borough Council,21303,Transfer Payments,Parish Councils,Parish Councils,28/09/2021,485031,36395,SEATON P.C.,X00089,6,2021
Allerdale Borough Council,21303,Transfer Payments,Parish Councils,Parish Councils,28/09/2021,485032,3050,SEBERGHAM P.C.,X00090,6,2021
Allerdale Borough Council,21303,Transfer Payments,Parish Councils,Parish Councils,28/09/2021,485033,86497.5,SILLOTH T.C.,X00092,6,2021
Allerdale Borough Council,21303,Transfer Payments,Parish Councils,Parish Councils,28/09/2021,485034,4043.5,ST JOHNS P.C.,X00093,6,2021
Allerdale Borough Council,21303,Transfer Payments,Parish Councils,Parish Councils,28/09/2021,485035,12760,THURSBY P.C.,X00094,6,2021
Allerdale Borough Council,21303,Transfer Payments,Parish Councils,Parish Councils,28/09/2021,485036,3531.67,UNDERSKIDDAW P.C.,X00095,6,2021
Allerdale Borough Council,21303,Transfer Payments,Parish Councils,Parish Councils,28/09/2021,485037,1500,WAVERTON P.C.,X00096,6,2021
Allerdale Borough Council,21303,Transfer Payments,Parish Councils,Parish Councils,28/09/2021,485038,3000,WESTNEWTON P.C.,X00097,6,2021
Allerdale Borough Council,21303,Transfer Payments,Parish Councils,Parish Councils,28/09/2021,485039,4080,WESTWARD P.C.,X00098,6,2021
Allerdale Borough Council,21303,Transfer Payments,Parish Councils,Parish Councils,28/09/2021,485040,150000,WIGTON TOWN COUNCIL,X00099,6,2021
Allerdale Borough Council,21303,Transfer Payments,Parish Councils,Parish Councils,28/09/2021,485041,3000,WINSCALES P.C.,X00100,6,2021
Allerdale Borough Council,21303,Transfer Payments,Parish Councils,Parish Councils,28/09/2021,485042,3299.5,WOODSIDE P.C.,X00101,6,2021
Allerdale Borough Council,21303,Transfer Payments,Parish Councils,Parish Councils,28/09/2021,485043,280275,WORKINGTON T.C.,X00102,6,2021
Allerdale Borough Council,10401,Employee Costs,Food Safety & Occupational Health,Agency Staff Costs,28/09/2021,485044,29.25,HAYS SPECIALIST RECRUITMENT LTD,A00280,6,2021
Allerdale Borough Council,10401,Employee Costs,Food Safety & Occupational Health,Agency Staff Costs,28/09/2021,485045,29.25,HAYS SPECIALIST RECRUITMENT LTD,A00280,6,2021
Allerdale Borough Council,10401,Employee Costs,Food Safety & Occupational Health,Agency Staff Costs,28/09/2021,485046,29.25,HAYS SPECIALIST RECRUITMENT LTD,A00280,6,2021
Allerdale Borough Council,10401,Employee Costs,Food Safety & Occupational Health,Agency Staff Costs,28/09/2021,485047,29.25,HAYS SPECIALIST RECRUITMENT LTD,A00280,6,2021
Allerdale Borough Council,10401,Employee Costs,Food Safety & Occupational Health,Agency Staff Costs,28/09/2021,485048,23.72,HAYS SPECIALIST RECRUITMENT LTD,A00280,6,2021
Allerdale Borough Council,10401,Employee Costs,Food Safety & Occupational Health,Agency Staff Costs,28/09/2021,485049,29.25,HAYS SPECIALIST RECRUITMENT LTD,A00280,6,2021
Allerdale Borough Council,10401,Employee Costs,Food Safety & Occupational Health,Agency Staff Costs,28/09/2021,485050,29.25,HAYS SPECIALIST RECRUITMENT LTD,A00280,6,2021
Allerdale Borough Council,10401,Employee Costs,Food Safety & Occupational Health,Agency Staff Costs,28/09/2021,485051,29.25,HAYS SPECIALIST RECRUITMENT LTD,A00280,6,2021
Allerdale Borough Council,10401,Employee Costs,Food Safety & Occupational Health,Agency Staff Costs,28/09/2021,485052,29.25,HAYS SPECIALIST RECRUITMENT LTD,A00280,6,2021
Allerdale Borough Council,10401,Employee Costs,Food Safety & Occupational Health,Agency Staff Costs,28/09/2021,485053,416.4,HAYS SPECIALIST RECRUITMENT LTD,A00280,6,2021
Allerdale Borough Council,10401,Employee Costs,Food Safety & Occupational Health,Agency Staff Costs,28/09/2021,485054,416.4,HAYS SPECIALIST RECRUITMENT LTD,A00280,6,2021
Allerdale Borough Council,10401,Employee Costs,Food Safety & Occupational Health,Agency Staff Costs,28/09/2021,485055,416.4,HAYS SPECIALIST RECRUITMENT LTD,A00280,6,2021
Allerdale Borough Council,10401,Employee Costs,Food Safety & Occupational Health,Agency Staff Costs,28/09/2021,485056,542.81,HAYS SPECIALIST RECRUITMENT LTD,A00280,6,2021
Allerdale Borough Council,10401,Employee Costs,Food Safety & Occupational Health,Agency Staff Costs,,485057,288.01,HAYS SPECIALIST RECRUITMENT LTD,A00280,6,2021
Allerdale Borough Council,15811,Supplies & Services,IT Services,Software Maintenance,20/09/2021,485058,17205.16,NEW DAY AT WORK BV,A02860,6,2021
Allerdale Borough Council,10401,Employee Costs,Food Safety & Occupational Health,Agency Staff Costs,,485059,364.35,HAYS SPECIALIST RECRUITMENT LTD,A00280,6,2021
Allerdale Borough Council,10401,Employee Costs,Food Safety & Occupational Health,Agency Staff Costs,,485060,416.4,HAYS SPECIALIST RECRUITMENT LTD,A00280,6,2021
Allerdale Borough Council,10401,Employee Costs,Food Safety & Occupational Health,Agency Staff Costs,,485061,542.81,HAYS SPECIALIST RECRUITMENT LTD,A00280,6,2021
Allerdale Borough Council,12101,Premises,Multi Storey Car Park Utilities & Maint,External Maintenance & Decoration,,485062,830.76,BARCLAYCARD COMMERCIAL,X00207,6,2021
Allerdale Borough Council,16350,Supplies & Services,Prevention Fund,Miscellaneous Expenses,28/09/2021,485063,91.22,IMPACT HOUSING ASSOCIATION LTD,A00236,6,2021
Allerdale Borough Council,16350,Supplies & Services,Prevention Fund,Miscellaneous Expenses,28/09/2021,485064,70.98,CASTLES & COASTS,M01448,6,2021
Allerdale Borough Council,16350,Supplies & Services,Reopening High Streets,Miscellaneous Expenses,28/09/2021,485065,150,SETHS BAR,M02074,6,2021
Allerdale Borough Council,12201,Premises,Corporate Property Maintenance,Internal Maintenance,28/09/2021,485066,10.98,Redacted information - included personal information ,M02005,6,2021
Allerdale Borough Council,15506,Supplies & Services,Food and Occupational Health,Professional Services,28/09/2021,485067,244,AJM VETERINARY SERVICES T/A REIVER VETERINARY SERVICES,A02872,6,2021
Allerdale Borough Council,15506,Supplies & Services,Food and Occupational Health,Professional Services,28/09/2021,485068,244,AJM VETERINARY SERVICES T/A REIVER VETERINARY SERVICES,A02872,6,2021
Allerdale Borough Council,15101,Supplies & Services,Corporate Property Maintenance,Equipment Costs,28/09/2021,485069,170.91,BOOKER CASH & CARRY,A01419,6,2021
Allerdale Borough Council,16300,Supplies & Services,Festivals & Events,Budget-Miscellaneous,28/09/2021,485070,1468.25,FLUID PRODUCTIONS LIMITED,A02009,6,2021
Allerdale Borough Council,12103,Premises,Siddick Pond - Water Environment Grant,Grounds Maintenance,,485071,1700,TIVOLI GROUP LTD,A02568,6,2021
Allerdale Borough Council,12101,Premises,Corporate Property Maintenance,External Maintenance & Decoration,,485072,90,TIVOLI GROUP LTD,A02568,6,2021
Allerdale Borough Council,16300,Supplies & Services,Tourism Incentive,Budget-Miscellaneous,28/09/2021,485073,1000,THOMAS KAY PHOTOGRAPHY,A00245,6,2021
Allerdale Borough Council,20150,Third Party Payments,Footway Lighting,General Partnership Service Fees,28/09/2021,485074,4541.52,CUMBRIA COUNTY COUNCIL,A00066,6,2021
Allerdale Borough Council,15601,Supplies & Services,Corporate Postage and Stationary,Postage,28/09/2021,485075,892.04,UK MAIL GROUP PLC,A02371,6,2021
Allerdale Borough Council,10401,Employee Costs,Food Safety & Occupational Health,Agency Staff Costs,,485076,542.81,HAYS SPECIALIST RECRUITMENT LTD,A00280,6,2021
Allerdale Borough Council,10401,Employee Costs,Food Safety & Occupational Health,Agency Staff Costs,,485077,333.12,HAYS SPECIALIST RECRUITMENT LTD,A00280,6,2021
Allerdale Borough Council,15601,Supplies & Services,Corporate Postage and Stationary,Postage,28/09/2021,485078,1347.72,UK MAIL GROUP PLC,A02371,6,2021
Allerdale Borough Council,12101,Premises,Street Naming and Numbering,External Maintenance & Decoration,,485079,336.8,G & G SIGNS,A00993,6,2021
Allerdale Borough Council,12301,Premises,Corporate Property Maintenance,Security,28/09/2021,485080,70,COMPASS SERVICES GROUP,A00839,6,2021
Allerdale Borough Council,15506,Supplies & Services,Maryport HAZ,Professional Services,28/09/2021,485081,4972,BEAG LTD T/A SLIDING SASH SOLUTIONS,C00245,6,2021
Allerdale Borough Council,15508,Supplies & Services,Solway Coast AONB Core Funding,Subscriptions,28/09/2021,485082,260,CUMBRIA TOURISM,A00477,6,2021
Allerdale Borough Council,15506,Supplies & Services,Solway AONB,Professional Services,28/09/2021,485083,255,OPENSPACE (CUMBRIA) LTD,C00178,6,2021
Allerdale Borough Council,15102,Supplies & Services,Electoral Registration,Equipment Repair & Maintenance,,485084,213.67,QUADIENT FINANCE UK LTD ,A00455,6,2021
Allerdale Borough Council,16302,Supplies & Services,Members Services,Room Hire,28/09/2021,485085,224,LAKES COLLEGE WEST CUMB,A00093,6,2021
Allerdale Borough Council,16302,Supplies & Services,Mayor's Fund,Room Hire,28/09/2021,485086,36,BOLTON LOW HOUSES VILLAGE HALL,M01654,6,2021
Allerdale Borough Council,20150,Third Party Payments,Festivals & Events,General Partnership Service Fees,28/09/2021,485087,20,BASTION EVENT MANAGEMENT,A02741,6,2021
Allerdale Borough Council,20150,Third Party Payments,Festivals & Events,General Partnership Service Fees,28/09/2021,485088,276.55,BASTION EVENT MANAGEMENT,A02741,6,2021
Allerdale Borough Council,20150,Third Party Payments,Festivals & Events,General Partnership Service Fees,28/09/2021,485089,2030,CUMBRIA MARQUEES LTD,A02706,6,2021
Allerdale Borough Council,20150,Third Party Payments,Festivals & Events,General Partnership Service Fees,28/09/2021,485090,714,POD (NORTH WEST) LIMITED,A01977,6,2021
Allerdale Borough Council,12301,Premises,Corporate Property Maintenance,Security,28/09/2021,485091,25,COMPASS SERVICES GROUP,A00839,6,2021
Allerdale Borough Council,12309,Premises,Corporate Property Maintenance,Fire and Safety,28/09/2021,485092,46.25,ORIAN SOLUTIONS LTD,A01814,6,2021
Allerdale Borough Council,10401,Employee Costs,Food Safety & Occupational Health,Agency Staff Costs,28/09/2021,485093,274.13,HAYS SPECIALIST RECRUITMENT LTD,A00280,6,2021
Allerdale Borough Council,15101,Supplies & Services,Corporate Property Maintenance,Equipment Costs,,485094,26.58,FAST KEY SERVICES LTD,A01537,6,2021
Allerdale Borough Council,12305,Premises,Multi Storey Car Park Utilities & Maint,Inspections and Services,,485095,492.82,DORMA UK LTD,A01349,6,2021
Allerdale Borough Council,15601,Supplies & Services,Corporate Postage and Stationary,Postage,28/09/2021,485096,35.53,ROYAL MAIL LETTERS,X00021,6,2021
Allerdale Borough Council,15601,Supplies & Services,Corporate Postage and Stationary,Postage,28/09/2021,485097,5.64,ROYAL MAIL LETTERS,X00021,6,2021
Allerdale Borough Council,16300,Supplies & Services,Festivals & Events,Budget-Miscellaneous,28/09/2021,485098,190.75,FLUID PRODUCTIONS LIMITED,A02009,6,2021
Allerdale Borough Council,15506,Supplies & Services,"Shop Fronts Scheme, Maryport (HAZ)",Professional Services,,485099,2000,BUTTRESS ARCHITECTS,A02704,6,2021
Allerdale Borough Council,10601,Employee Costs,Training,External Courses & Seminar Fees,,485100,95,GEN 11 ENGINEERING & TECH,A00095,6,2021
Allerdale Borough Council,16101,Supplies & Services,Planning and Development,Statutory Notices,,485101,779.52,NEWSQUEST MEDIA GROUP,A02348,6,2021
Allerdale Borough Council,54105,Capital Expenditure,Disabled Facilities Grants,Grants  Private Individuals (Capital),,485102,4033,PARTNERSHIP IN PROPERTY MANAGEMENT LTD,X00120,6,2021
Allerdale Borough Council,75103,Holding and Control Accounts,Payroll Suspense Account,PAYROLL September 2021 Travel & Subsistence  ,,,8545.90,INLAND REVENUE,X00038,5,2021
